Workbook

Sheet Данные
I1: Приложение №1
A2: Перечень актуальных и готовых к реализации невостребованных МТР
A4: Наименование лота | B4: Наименование ОГ | C4: № лота | D4: № позиции | E4: Наименование неликвидных (НЛ) и невостребованных ликвидных (НВЛ) материалов | F4: Ед. изм | G4: Количество | H4: Мин. цена реализации за ед., руб., без НДС | I4: Сумма, руб. без НДС | J4: Место нахождения
A5: Ввод кабельный | B5: ПАО АНК "Башнефть" "Башнефть-Новойл" | C5: 1 | D5: 1 | E5: Ввод каб. Cortem FAL 1(1/2")KB | F5: ШТ | G5: 15 | H5: 632.74 | I5: =G5*H5 -> 9491.1 | J5: 450045, г. Уфа, ПАО АНК "Башнефть" "Башнефть-Новойл"
A6: Ввод кабельный | B6: ПАО АНК "Башнефть" "Башнефть-Новойл" | C6: 1 | D6: 2 | E6: Ввод каб. ВК-Л-ВЭЛ 4Т-М25-Exd-G3/4"-В1,5 | F6: ШТ | G6: 40 | H6: 516.6 | I6: 20664 | J6: 450045, г. Уфа, ПАО АНК "Башнефть" "Башнефть-Новойл"
A7: Ввод кабельный | B7: ПАО АНК "Башнефть" "Башнефть-Новойл" | C7: 1 | D7: 3 | E7: Ввод кабельный Cortem FAL2(3/4)КВ | F7: ШТ | G7: 1 | H7: 1106.62 | I7: 1106.62 | J7: 450045, г. Уфа, ПАО АНК "Башнефть" "Башнефть-Новойл"
A8: Ввод кабельный | B8: ПАО АНК "Башнефть" "Башнефть-Новойл" | C8: 1 | D8: 4 | E8: Ввод каб. Cortem FAL 1(1/2")KB | F8: ШТ | G8: 132 | H8: 632.74 | I8: 83521.68 | J8: 450045, г. Уфа, ПАО АНК "Башнефть" "Башнефть-Новойл"
A9: Ввод кабельный | B9: ПАО АНК "Башнефть" "Башнефть-Новойл" | C9: 1 | D9: 5 | E9: Ввод каб. Cortem FAL 1(1/2")KB | F9: ШТ | G9: 2 | H9: 1126.95 | I9: 2253.9 | J9: 450045, г. Уфа, ПАО АНК "Башнефть" "Башнефть-Новойл"
A10: Ввод кабельный | B10: ПАО АНК "Башнефть" "Башнефть-Новойл" | C10: 1 | D10: 6 | E10: Ввод каб. Cortem FAL1IKB | F10: ШТ | G10: 159 | H10: 632.74 | I10: 100605.66 | J10: 450045, г. Уфа, ПАО АНК "Башнефть" "Башнефть-Новойл"
A11: Ввод кабельный | B11: ПАО АНК "Башнефть" "Башнефть-Новойл" | C11: 1 | D11: 7 | E11: Ввод каб. ВК-Л-ВЭЛ 2-М25-Exd-В1,5 | F11: ШТ | G11: 2 | H11: 516.6 | I11: 1033.2 | J11: 450045, г. Уфа, ПАО АНК "Башнефть" "Башнефть-Новойл"
A12: Ввод кабельный | B12: ПАО АНК "Башнефть" "Башнефть-Новойл" | C12: 1 | D12: 8 | E12: Ввод каб. ВК-Л-ВЭЛ 4Т-М25-Exd-G3/4"-В1,5 | F12: ШТ | G12: 68 | H12: 516.6 | I12: 35128.8 | J12: 450045, г. Уфа, ПАО АНК "Башнефть" "Башнефть-Новойл"
A13: Ввод кабельный | B13: ПАО АНК "Башнефть" "Башнефть-Новойл" | C13: 1 | D13: 9 | E13: Ввод каб. М22 УТ1,5 zeta30117 | F13: ШТ | G13: 30 | H13: 36 | I13: 1080 | J13: 450045, г. Уфа, ПАО АНК "Башнефть" "Башнефть-Новойл"
A14: Ввод кабельный | B14: ПАО АНК "Башнефть" "Башнефть-Новойл" | C14: 1 | D14: 10 | E14: Ввод каб.CMP Products 20ST3CDS1RANi | F14: ШТ | G14: 101 | H14: 1237.4 | I14: 124977.4 | J14: 450045, г. Уфа, ПАО АНК "Башнефть" "Башнефть-Новойл"
A15: Ввод кабельный | B15: ПАО АНК "Башнефть" "Башнефть-Новойл" | C15: 1 | D15: 11 | E15: Ввод кабельный Cortem FAL2(3/4)КВ | F15: ШТ | G15: 151 | H15: 1106.62 | I15: 167099.62 | J15: 450045, г. Уфа, ПАО АНК "Башнефть" "Башнефть-Новойл"
A16: Маркировка | B16: ПАО АНК "Башнефть" "Башнефть-Новойл" | C16: 2 | D16: 12 | E16: Маркировка Phoenix Contact 1050020:0031 | F16: ШТ | G16: 10 | H16: 39.31 | I16: 393.1 | J16: 450045, г. Уфа, ПАО АНК "Башнефть" "Башнефть-Новойл"
A17: Маркировка | B17: ПАО АНК "Башнефть" "Башнефть-Новойл" | C17: 2 | D17: 13 | E17: Маркировка Phoenix Contact KLM-A 1004348 | F17: ШТ | G17: 100 | H17: 39.31 | I17: 3931 | J17: 450045, г. Уфа, ПАО АНК "Башнефть" "Башнефть-Новойл"
A18: Маркировка | B18: ПАО АНК "Башнефть" "Башнефть-Новойл" | C18: 2 | D18: 14 | E18: Маркировка Phoenix Contact P/n 0807575 | F18: ШТ | G18: 3 | H18: 39.31 | I18: 117.93 | J18: 450045, г. Уфа, ПАО АНК "Башнефть" "Башнефть-Новойл"
A19: Маркировка | B19: ПАО АНК "Башнефть" "Башнефть-Новойл" | C19: 2 | D19: 15 | E19: Маркировка Phoenix Contact P/n 0807575 | F19: ШТ | G19: 6 | H19: 39.31 | I19: 235.86 | J19: 450045, г. Уфа, ПАО АНК "Башнефть" "Башнефть-Новойл"
A20: Маркировка | B20: ПАО АНК "Башнефть" "Башнефть-Новойл" | C20: 2 | D20: 16 | E20: Маркировка ZB5 QR 1050020:0021 (21-30) | F20: ШТ | G20: 10 | H20: 39.31 | I20: 393.1 | J20: 450045, г. Уфа, ПАО АНК "Башнефть" "Башнефть-Новойл"
A21: Маркировка | B21: ПАО АНК "Башнефть" "Башнефть-Новойл" | C21: 2 | D21: 17 | E21: Маркировка ZB5 QR 1050020:0041 (41-50) | F21: ШТ | G21: 10 | H21: 39.31 | I21: 393.1 | J21: 450045, г. Уфа, ПАО АНК "Башнефть" "Башнефть-Новойл"
A22: Маркировка | B22: ПАО АНК "Башнефть" "Башнефть-Новойл" | C22: 2 | D22: 18 | E22: Маркировка ZB5 QR 1050020:0271 (271-280) | F22: ШТ | G22: 14 | H22: 39.31 | I22: 550.34 | J22: 450045, г. Уфа, ПАО АНК "Башнефть" "Башнефть-Новойл"
A23: Маркировка | B23: ПАО АНК "Башнефть" "Башнефть-Новойл" | C23: 2 | D23: 19 | E23: Маркировка ZB5 QR 1050020:0281 (281-290) | F23: ШТ | G23: 18 | H23: 39.31 | I23: 707.58 | J23: 450045, г. Уфа, ПАО АНК "Башнефть" "Башнефть-Новойл"
A24: Маркировка | B24: ПАО АНК "Башнефть" "Башнефть-Новойл" | C24: 2 | D24: 20 | E24: Маркировка ZB5 QR 1050020:0281 (281-290) | F24: ШТ | G24: 10 | H24: 39.31 | I24: 393.1 | J24: 450045, г. Уфа, ПАО АНК "Башнефть" "Башнефть-Новойл"
A25: Маркировка | B25: ПАО АНК "Башнефть" "Башнефть-Новойл" | C25: 2 | D25: 21 | E25: Маркировка ZB5 QR 1050020:0291 (291-300) | F25: ШТ | G25: 16 | H25: 39.31 | I25: 628.96 | J25: 450045, г. Уфа, ПАО АНК "Башнефть" "Башнефть-Новойл"
A26: Маркировка | B26: ПАО АНК "Башнефть" "Башнефть-Новойл" | C26: 2 | D26: 22 | E26: Маркировка ZB6 LGS 1051016:0001 (1-10) | F26: ШТ | G26: 1 | H26: 39.31 | I26: 39.31 | J26: 450045, г. Уфа, ПАО АНК "Башнефть" "Башнефть-Новойл"
A27: Маркировка | B27: ПАО АНК "Башнефть" "Башнефть-Новойл" | C27: 2 | D27: 23 | E27: Маркировка ZB6 LGS 1051016:0001 (1-10) | F27: ШТ | G27: 1 | H27: 39.31 | I27: 39.31 | J27: 450045, г. Уфа, ПАО АНК "Башнефть" "Башнефть-Новойл"
A28: Маркировка | B28: ПАО АНК "Башнефть" "Башнефть-Новойл" | C28: 2 | D28: 24 | E28: Маркировка ZB8 QR 1052028:0121 (121-130) | F28: ШТ | G28: 1 | H28: 39.31 | I28: 39.31 | J28: 450045, г. Уфа, ПАО АНК "Башнефть" "Башнефть-Новойл"
A29: Маркировка | B29: ПАО АНК "Башнефть" "Башнефть-Новойл" | C29: 2 | D29: 25 | E29: Маркировка Phoenix Contact 0819411 | F29: ШТ | G29: 2 | H29: 39.31 | I29: 78.62 | J29: 450045, г. Уфа, ПАО АНК "Башнефть" "Башнефть-Новойл"
A30: Маркировка | B30: ПАО АНК "Башнефть" "Башнефть-Новойл" | C30: 2 | D30: 26 | E30: Маркировка Phoenix Contact 0819411 | F30: ШТ | G30: 2 | H30: 39.31 | I30: 78.62 | J30: 450045, г. Уфа, ПАО АНК "Башнефть" "Башнефть-Новойл"
A31: Маркировка | B31: ПАО АНК "Башнефть" "Башнефть-Новойл" | C31: 2 | D31: 27 | E31: Маркировка Phoenix Contact 1050020:0011 | F31: ШТ | G31: 1 | H31: 39.31 | I31: 39.31 | J31: 450045, г. Уфа, ПАО АНК "Башнефть" "Башнефть-Новойл"
A32: Маркировка | B32: ПАО АНК "Башнефть" "Башнефть-Новойл" | C32: 2 | D32: 28 | E32: Маркировка Phoenix Contact 1050020:0011 | F32: ШТ | G32: 9 | H32: 39.31 | I32: 353.79 | J32: 450045, г. Уфа, ПАО АНК "Башнефть" "Башнефть-Новойл"
A33: Маркировка | B33: ПАО АНК "Башнефть" "Башнефть-Новойл" | C33: 2 | D33: 29 | E33: Маркировка Phoenix Contact 1050020:0011 | F33: ШТ | G33: 11 | H33: 39.31 | I33: 432.41 | J33: 450045, г. Уфа, ПАО АНК "Башнефть" "Башнефть-Новойл"
A34: Маркировка | B34: ПАО АНК "Башнефть" "Башнефть-Новойл" | C34: 2 | D34: 30 | E34: Маркировка Phoenix Contact 1050020:0011 | F34: ШТ | G34: 20 | H34: 39.31 | I34: 786.2 | J34: 450045, г. Уфа, ПАО АНК "Башнефть" "Башнефть-Новойл"
A35: Маркировка | B35: ПАО АНК "Башнефть" "Башнефть-Новойл" | C35: 2 | D35: 31 | E35: Маркировка Phoenix Contact 1050020:0011 | F35: ШТ | G35: 6 | H35: 39.31 | I35: 235.86 | J35: 450045, г. Уфа, ПАО АНК "Башнефть" "Башнефть-Новойл"
A36: Маркировка | B36: ПАО АНК "Башнефть" "Башнефть-Новойл" | C36: 2 | D36: 32 | E36: Маркировка Phoenix Contact 1050020:0031 | F36: ШТ | G36: 1 | H36: 39.31 | I36: 39.31 | J36: 450045, г. Уфа, ПАО АНК "Башнефть" "Башнефть-Новойл"
A37: Маркировка | B37: ПАО АНК "Башнефть" "Башнефть-Новойл" | C37: 2 | D37: 33 | E37: Маркировка Phoenix Contact 1050020:0031 | F37: ШТ | G37: 20 | H37: 39.31 | I37: 786.2 | J37: 450045, г. Уфа, ПАО АНК "Башнефть" "Башнефть-Новойл"
A38: Маркировка | B38: ПАО АНК "Башнефть" "Башнефть-Новойл" | C38: 2 | D38: 34 | E38: Маркировка Phoenix Contact 1050020:0031 | F38: ШТ | G38: 6 | H38: 39.31 | I38: 235.86 | J38: 450045, г. Уфа, ПАО АНК "Башнефть" "Башнефть-Новойл"
A39: Маркировка | B39: ПАО АНК "Башнефть" "Башнефть-Новойл" | C39: 2 | D39: 35 | E39: Маркировка Phoenix Contact 1050020:0031 | F39: ШТ | G39: 10 | H39: 39.31 | I39: 393.1 | J39: 450045, г. Уфа, ПАО АНК "Башнефть" "Башнефть-Новойл"
A40: Маркировка | B40: ПАО АНК "Башнефть" "Башнефть-Новойл" | C40: 2 | D40: 36 | E40: Маркировка Phoenix Contact 1050020:0031 | F40: ШТ | G40: 2 | H40: 39.31 | I40: 78.62 | J40: 450045, г. Уфа, ПАО АНК "Башнефть" "Башнефть-Новойл"
A41: Маркировка | B41: ПАО АНК "Башнефть" "Башнефть-Новойл" | C41: 2 | D41: 37 | E41: Маркировка Phoenix Contact 1050020:0071 | F41: ШТ | G41: 31 | H41: 39.31 | I41: 1218.61 | J41: 450045, г. Уфа, ПАО АНК "Башнефть" "Башнефть-Новойл"
A42: Маркировка | B42: ПАО АНК "Башнефть" "Башнефть-Новойл" | C42: 2 | D42: 38 | E42: Маркировка Phoenix Contact 1050020:0071 | F42: ШТ | G42: 6 | H42: 39.31 | I42: 235.86 | J42: 450045, г. Уфа, ПАО АНК "Башнефть" "Башнефть-Новойл"
A43: Маркировка | B43: ПАО АНК "Башнефть" "Башнефть-Новойл" | C43: 2 | D43: 39 | E43: Маркировка Phoenix Contact 1050020:0071 | F43: ШТ | G43: 10 | H43: 39.31 | I43: 393.1 | J43: 450045, г. Уфа, ПАО АНК "Башнефть" "Башнефть-Новойл"
A44: Маркировка | B44: ПАО АНК "Башнефть" "Башнефть-Новойл" | C44: 2 | D44: 40 | E44: Маркировка Phoenix Contact 1050020:0071 | F44: ШТ | G44: 10 | H44: 39.31 | I44: 393.1 | J44: 450045, г. Уфа, ПАО АНК "Башнефть" "Башнефть-Новойл"
A45: Маркировка | B45: ПАО АНК "Башнефть" "Башнефть-Новойл" | C45: 2 | D45: 41 | E45: Маркировка Phoenix Contact 1052028:0001 | F45: ШТ | G45: 1 | H45: 39.31 | I45: 39.31 | J45: 450045, г. Уфа, ПАО АНК "Башнефть" "Башнефть-Новойл"
A46: Маркировка | B46: ПАО АНК "Башнефть" "Башнефть-Новойл" | C46: 2 | D46: 42 | E46: Маркировка Phoenix Contact 1052028:0001 | F46: ШТ | G46: 1 | H46: 39.31 | I46: 39.31 | J46: 450045, г. Уфа, ПАО АНК "Башнефть" "Башнефть-Новойл"
A47: Маркировка | B47: ПАО АНК "Башнефть" "Башнефть-Новойл" | C47: 2 | D47: 43 | E47: Маркировка Phoenix Contact 1052028:0001 | F47: ШТ | G47: 10 | H47: 39.31 | I47: 393.1 | J47: 450045, г. Уфа, ПАО АНК "Башнефть" "Башнефть-Новойл"
A48: Маркировка | B48: ПАО АНК "Башнефть" "Башнефть-Новойл" | C48: 2 | D48: 44 | E48: Маркировка Phoenix Contact 1052028:0001 | F48: ШТ | G48: 2 | H48: 39.31 | I48: 78.62 | J48: 450045, г. Уфа, ПАО АНК "Башнефть" "Башнефть-Новойл"
A49: Маркировка | B49: ПАО АНК "Башнефть" "Башнефть-Новойл" | C49: 2 | D49: 45 | E49: Маркировка Phoenix Contact KLM-A 1004348 | F49: ШТ | G49: 10 | H49: 39.31 | I49: 393.1 | J49: 450045, г. Уфа, ПАО АНК "Башнефть" "Башнефть-Новойл"
A50: Маркировка | B50: ПАО АНК "Башнефть" "Башнефть-Новойл" | C50: 2 | D50: 46 | E50: Маркировка Phoenix Contact KLM-A 1004348 | F50: ШТ | G50: 600 | H50: 39.31 | I50: 23586 | J50: 450045, г. Уфа, ПАО АНК "Башнефть" "Башнефть-Новойл"
A51: Маркировка | B51: ПАО АНК "Башнефть" "Башнефть-Новойл" | C51: 2 | D51: 47 | E51: Маркировка Phoenix Contact KLM-A 1004348 | F51: ШТ | G51: 4 | H51: 39.31 | I51: 157.24 | J51: 450045, г. Уфа, ПАО АНК "Башнефть" "Башнефть-Новойл"
A52: Маркировка | B52: ПАО АНК "Башнефть" "Башнефть-Новойл" | C52: 2 | D52: 48 | E52: Маркировка Phoenix Contact P/n 0807575 | F52: ШТ | G52: 3 | H52: 39.31 | I52: 117.93 | J52: 450045, г. Уфа, ПАО АНК "Башнефть" "Башнефть-Новойл"
A53: Маркировка | B53: ПАО АНК "Башнефть" "Башнефть-Новойл" | C53: 2 | D53: 49 | E53: Маркировка Phoenix Contact P/n 0807575 | F53: ШТ | G53: 300 | H53: 39.31 | I53: 11793 | J53: 450045, г. Уфа, ПАО АНК "Башнефть" "Башнефть-Новойл"
A54: Маркировка | B54: ПАО АНК "Башнефть" "Башнефть-Новойл" | C54: 2 | D54: 50 | E54: Маркировка Phoenix Contact P/n 0808257 | F54: ШТ | G54: 10 | H54: 39.31 | I54: 393.1 | J54: 450045, г. Уфа, ПАО АНК "Башнефть" "Башнефть-Новойл"
A55: Маркировка | B55: ПАО АНК "Башнефть" "Башнефть-Новойл" | C55: 2 | D55: 51 | E55: Маркировка Phoenix Contact P/n 1050004 | F55: ШТ | G55: 2 | H55: 39.31 | I55: 78.62 | J55: 450045, г. Уфа, ПАО АНК "Башнефть" "Башнефть-Новойл"
A56: Маркировка | B56: ПАО АНК "Башнефть" "Башнефть-Новойл" | C56: 2 | D56: 52 | E56: Маркировка ZB10 QR 1053027:0011 (11-20) | F56: ШТ | G56: 10 | H56: 39.31 | I56: 393.1 | J56: 450045, г. Уфа, ПАО АНК "Башнефть" "Башнефть-Новойл"
A57: Маркировка | B57: ПАО АНК "Башнефть" "Башнефть-Новойл" | C57: 2 | D57: 53 | E57: Маркировка ZB15:UNBEDRUCKT 0811972 | F57: ШТ | G57: 10 | H57: 39.31 | I57: 393.1 | J57: 450045, г. Уфа, ПАО АНК "Башнефть" "Башнефть-Новойл"
A58: Маркировка | B58: ПАО АНК "Башнефть" "Башнефть-Новойл" | C58: 2 | D58: 54 | E58: Маркировка ZB5 QR 1050020:0001 (1-10) | F58: ШТ | G58: 11 | H58: 39.31 | I58: 432.41 | J58: 450045, г. Уфа, ПАО АНК "Башнефть" "Башнефть-Новойл"
A59: Маркировка | B59: ПАО АНК "Башнефть" "Башнефть-Новойл" | C59: 2 | D59: 55 | E59: Маркировка ZB5 QR 1050020:0001 (1-10) | F59: ШТ | G59: 10 | H59: 39.31 | I59: 393.1 | J59: 450045, г. Уфа, ПАО АНК "Башнефть" "Башнефть-Новойл"
A60: Маркировка | B60: ПАО АНК "Башнефть" "Башнефть-Новойл" | C60: 2 | D60: 56 | E60: Маркировка ZB5 QR 1050020:0001 (1-10) | F60: ШТ | G60: 6 | H60: 39.31 | I60: 235.86 | J60: 450045, г. Уфа, ПАО АНК "Башнефть" "Башнефть-Новойл"
A61: Маркировка | B61: ПАО АНК "Башнефть" "Башнефть-Новойл" | C61: 2 | D61: 57 | E61: Маркировка ZB5 QR 1050020:0021 (21-30) | F61: ШТ | G61: 1 | H61: 39.31 | I61: 39.31 | J61: 450045, г. Уфа, ПАО АНК "Башнефть" "Башнефть-Новойл"
A62: Маркировка | B62: ПАО АНК "Башнефть" "Башнефть-Новойл" | C62: 2 | D62: 58 | E62: Маркировка ZB5 QR 1050020:0021 (21-30) | F62: ШТ | G62: 6 | H62: 39.31 | I62: 235.86 | J62: 450045, г. Уфа, ПАО АНК "Башнефть" "Башнефть-Новойл"
A63: Маркировка | B63: ПАО АНК "Башнефть" "Башнефть-Новойл" | C63: 2 | D63: 59 | E63: Маркировка ZB5 QR 1050020:0021 (21-30) | F63: ШТ | G63: 10 | H63: 39.31 | I63: 393.1 | J63: 450045, г. Уфа, ПАО АНК "Башнефть" "Башнефть-Новойл"
A64: Маркировка | B64: ПАО АНК "Башнефть" "Башнефть-Новойл" | C64: 2 | D64: 60 | E64: Маркировка ZB5 QR 1050020:0021 (21-30) | F64: ШТ | G64: 2 | H64: 39.31 | I64: 78.62 | J64: 450045, г. Уфа, ПАО АНК "Башнефть" "Башнефть-Новойл"
A65: Маркировка | B65: ПАО АНК "Башнефть" "Башнефть-Новойл" | C65: 2 | D65: 61 | E65: Маркировка ZB5 QR 1050020:0041 (41-50) | F65: ШТ | G65: 1 | H65: 39.31 | I65: 39.31 | J65: 450045, г. Уфа, ПАО АНК "Башнефть" "Башнефть-Новойл"
A66: Маркировка | B66: ПАО АНК "Башнефть" "Башнефть-Новойл" | C66: 2 | D66: 62 | E66: Маркировка ZB5 QR 1050020:0041 (41-50) | F66: ШТ | G66: 40 | H66: 39.31 | I66: 1572.4 | J66: 450045, г. Уфа, ПАО АНК "Башнефть" "Башнефть-Новойл"
A67: Маркировка | B67: ПАО АНК "Башнефть" "Башнефть-Новойл" | C67: 2 | D67: 63 | E67: Маркировка ZB5 QR 1050020:0041 (41-50) | F67: ШТ | G67: 6 | H67: 39.31 | I67: 235.86 | J67: 450045, г. Уфа, ПАО АНК "Башнефть" "Башнефть-Новойл"
A68: Маркировка | B68: ПАО АНК "Башнефть" "Башнефть-Новойл" | C68: 2 | D68: 64 | E68: Маркировка ZB5 QR 1050020:0041 (41-50) | F68: ШТ | G68: 10 | H68: 39.31 | I68: 393.1 | J68: 450045, г. Уфа, ПАО АНК "Башнефть" "Башнефть-Новойл"
A69: Маркировка | B69: ПАО АНК "Башнефть" "Башнефть-Новойл" | C69: 2 | D69: 65 | E69: Маркировка ZB5 QR 1050020:0041 (41-50) | F69: ШТ | G69: 2 | H69: 39.31 | I69: =G69*H69 -> 78.62 | J69: 450045, г. Уфа, ПАО АНК "Башнефть" "Башнефть-Новойл"
A70: Маркировка | B70: ПАО АНК "Башнефть" "Башнефть-Новойл" | C70: 2 | D70: 66 | E70: Маркировка ZB5 QR 1050020:0051 (51-60) | F70: ШТ | G70: 6 | H70: 39.31 | I70: 235.86 | J70: 450045, г. Уфа, ПАО АНК "Башнефть" "Башнефть-Новойл"
A71: Маркировка | B71: ПАО АНК "Башнефть" "Башнефть-Новойл" | C71: 2 | D71: 67 | E71: Маркировка ZB5 QR 1050020:0051 (51-60) | F71: ШТ | G71: 10 | H71: 39.31 | I71: 393.1 | J71: 450045, г. Уфа, ПАО АНК "Башнефть" "Башнефть-Новойл"
A72: Маркировка | B72: ПАО АНК "Башнефть" "Башнефть-Новойл" | C72: 2 | D72: 68 | E72: Маркировка ZB5 QR 1050020:0051 (51-60) | F72: ШТ | G72: 10 | H72: 39.31 | I72: 393.1 | J72: 450045, г. Уфа, ПАО АНК "Башнефть" "Башнефть-Новойл"
A73: Маркировка | B73: ПАО АНК "Башнефть" "Башнефть-Новойл" | C73: 2 | D73: 69 | E73: Маркировка ZB5 QR 1050020:0061 (61-70) | F73: ШТ | G73: 20 | H73: 39.31 | I73: 786.2 | J73: 450045, г. Уфа, ПАО АНК "Башнефть" "Башнефть-Новойл"
A74: Маркировка | B74: ПАО АНК "Башнефть" "Башнефть-Новойл" | C74: 2 | D74: 70 | E74: Маркировка ZB5 QR 1050020:0061 (61-70) | F74: ШТ | G74: 6 | H74: 39.31 | I74: 235.86 | J74: 450045, г. Уфа, ПАО АНК "Башнефть" "Башнефть-Новойл"
A75: Маркировка | B75: ПАО АНК "Башнефть" "Башнефть-Новойл" | C75: 2 | D75: 71 | E75: Маркировка ZB5 QR 1050020:0061 (61-70) | F75: ШТ | G75: 10 | H75: 39.31 | I75: 393.1 | J75: 450045, г. Уфа, ПАО АНК "Башнефть" "Башнефть-Новойл"
A76: Маркировка | B76: ПАО АНК "Башнефть" "Башнефть-Новойл" | C76: 2 | D76: 72 | E76: Маркировка ZB5 QR 1050020:0061 (61-70) | F76: ШТ | G76: 10 | H76: 39.31 | I76: 393.1 | J76: 450045, г. Уфа, ПАО АНК "Башнефть" "Башнефть-Новойл"
A77: Маркировка | B77: ПАО АНК "Башнефть" "Башнефть-Новойл" | C77: 2 | D77: 73 | E77: Маркировка ZB5 QR 1050020:0081 (81-90) | F77: ШТ | G77: 10 | H77: 39.31 | I77: 393.1 | J77: 450045, г. Уфа, ПАО АНК "Башнефть" "Башнефть-Новойл"
A78: Маркировка | B78: ПАО АНК "Башнефть" "Башнефть-Новойл" | C78: 2 | D78: 74 | E78: Маркировка ZB5 QR 1050020:0081 (81-90) | F78: ШТ | G78: 6 | H78: 39.31 | I78: 235.86 | J78: 450045, г. Уфа, ПАО АНК "Башнефть" "Башнефть-Новойл"
A79: Маркировка | B79: ПАО АНК "Башнефть" "Башнефть-Новойл" | C79: 2 | D79: 75 | E79: Маркировка ZB5 QR 1050020:0081 (81-90) | F79: ШТ | G79: 10 | H79: 39.31 | I79: 393.1 | J79: 450045, г. Уфа, ПАО АНК "Башнефть" "Башнефть-Новойл"
A80: Маркировка | B80: ПАО АНК "Башнефть" "Башнефть-Новойл" | C80: 2 | D80: 76 | E80: Маркировка ZB5 QR 1050020:0081 (81-90) | F80: ШТ | G80: 10 | H80: 39.31 | I80: 393.1 | J80: 450045, г. Уфа, ПАО АНК "Башнефть" "Башнефть-Новойл"
A81: Маркировка | B81: ПАО АНК "Башнефть" "Башнефть-Новойл" | C81: 2 | D81: 77 | E81: Маркировка ZB5 QR 1050020:0091 (91-100) | F81: ШТ | G81: 11 | H81: 39.31 | I81: 432.41 | J81: 450045, г. Уфа, ПАО АНК "Башнефть" "Башнефть-Новойл"
A82: Маркировка | B82: ПАО АНК "Башнефть" "Башнефть-Новойл" | C82: 2 | D82: 78 | E82: Маркировка ZB5 QR 1050020:0091 (91-100) | F82: ШТ | G82: 6 | H82: 39.31 | I82: 235.86 | J82: 450045, г. Уфа, ПАО АНК "Башнефть" "Башнефть-Новойл"
A83: Маркировка | B83: ПАО АНК "Башнефть" "Башнефть-Новойл" | C83: 2 | D83: 79 | E83: Маркировка ZB5 QR 1050020:0091 (91-100) | F83: ШТ | G83: 10 | H83: 39.31 | I83: 393.1 | J83: 450045, г. Уфа, ПАО АНК "Башнефть" "Башнефть-Новойл"
A84: Маркировка | B84: ПАО АНК "Башнефть" "Башнефть-Новойл" | C84: 2 | D84: 80 | E84: Маркировка ZB5 QR 1050020:0091 (91-100) | F84: ШТ | G84: 10 | H84: 39.31 | I84: 393.1 | J84: 450045, г. Уфа, ПАО АНК "Башнефть" "Башнефть-Новойл"
A85: Маркировка | B85: ПАО АНК "Башнефть" "Башнефть-Новойл" | C85: 2 | D85: 81 | E85: Маркировка ZB5 QR 1050020:0101 (101-110) | F85: ШТ | G85: 6 | H85: 39.31 | I85: 235.86 | J85: 450045, г. Уфа, ПАО АНК "Башнефть" "Башнефть-Новойл"
A86: Маркировка | B86: ПАО АНК "Башнефть" "Башнефть-Новойл" | C86: 2 | D86: 82 | E86: Маркировка ZB5 QR 1050020:0101 (101-110) | F86: ШТ | G86: 10 | H86: 39.31 | I86: 393.1 | J86: 450045, г. Уфа, ПАО АНК "Башнефть" "Башнефть-Новойл"
A87: Маркировка | B87: ПАО АНК "Башнефть" "Башнефть-Новойл" | C87: 2 | D87: 83 | E87: Маркировка ZB5 QR 1050020:0111 (111-120) | F87: ШТ | G87: 20 | H87: 39.31 | I87: 786.2 | J87: 450045, г. Уфа, ПАО АНК "Башнефть" "Башнефть-Новойл"
A88: Маркировка | B88: ПАО АНК "Башнефть" "Башнефть-Новойл" | C88: 2 | D88: 84 | E88: Маркировка ZB5 QR 1050020:0111 (111-120) | F88: ШТ | G88: 6 | H88: 39.31 | I88: 235.86 | J88: 450045, г. Уфа, ПАО АНК "Башнефть" "Башнефть-Новойл"
A89: Маркировка | B89: ПАО АНК "Башнефть" "Башнефть-Новойл" | C89: 2 | D89: 85 | E89: Маркировка ZB5 QR 1050020:0111 (111-120) | F89: ШТ | G89: 10 | H89: 39.31 | I89: 393.1 | J89: 450045, г. Уфа, ПАО АНК "Башнефть" "Башнефть-Новойл"
A90: Маркировка | B90: ПАО АНК "Башнефть" "Башнефть-Новойл" | C90: 2 | D90: 86 | E90: Маркировка ZB5 QR 1050020:0121 (121-130) | F90: ШТ | G90: 20 | H90: 39.31 | I90: 786.2 | J90: 450045, г. Уфа, ПАО АНК "Башнефть" "Башнефть-Новойл"
A91: Маркировка | B91: ПАО АНК "Башнефть" "Башнефть-Новойл" | C91: 2 | D91: 87 | E91: Маркировка ZB5 QR 1050020:0121 (121-130) | F91: ШТ | G91: 6 | H91: 39.31 | I91: 235.86 | J91: 450045, г. Уфа, ПАО АНК "Башнефть" "Башнефть-Новойл"
A92: Маркировка | B92: ПАО АНК "Башнефть" "Башнефть-Новойл" | C92: 2 | D92: 88 | E92: Маркировка ZB5 QR 1050020:0121 (121-130) | F92: ШТ | G92: 10 | H92: 39.31 | I92: 393.1 | J92: 450045, г. Уфа, ПАО АНК "Башнефть" "Башнефть-Новойл"
A93: Маркировка | B93: ПАО АНК "Башнефть" "Башнефть-Новойл" | C93: 2 | D93: 89 | E93: Маркировка ZB5 QR 1050020:0131 (131-140) | F93: ШТ | G93: 20 | H93: 39.31 | I93: 786.2 | J93: 450045, г. Уфа, ПАО АНК "Башнефть" "Башнефть-Новойл"
A94: Маркировка | B94: ПАО АНК "Башнефть" "Башнефть-Новойл" | C94: 2 | D94: 90 | E94: Маркировка ZB5 QR 1050020:0131 (131-140) | F94: ШТ | G94: 6 | H94: 39.31 | I94: 235.86 | J94: 450045, г. Уфа, ПАО АНК "Башнефть" "Башнефть-Новойл"
A95: Маркировка | B95: ПАО АНК "Башнефть" "Башнефть-Новойл" | C95: 2 | D95: 91 | E95: Маркировка ZB5 QR 1050020:0131 (131-140) | F95: ШТ | G95: 10 | H95: 39.31 | I95: 393.1 | J95: 450045, г. Уфа, ПАО АНК "Башнефть" "Башнефть-Новойл"
A96: Маркировка | B96: ПАО АНК "Башнефть" "Башнефть-Новойл" | C96: 2 | D96: 92 | E96: Маркировка ZB5 QR 1050020:0141 (141-150) | F96: ШТ | G96: 20 | H96: 39.31 | I96: 786.2 | J96: 450045, г. Уфа, ПАО АНК "Башнефть" "Башнефть-Новойл"
A97: Маркировка | B97: ПАО АНК "Башнефть" "Башнефть-Новойл" | C97: 2 | D97: 93 | E97: Маркировка ZB5 QR 1050020:0141 (141-150) | F97: ШТ | G97: 6 | H97: 39.31 | I97: 235.86 | J97: 450045, г. Уфа, ПАО АНК "Башнефть" "Башнефть-Новойл"
A98: Маркировка | B98: ПАО АНК "Башнефть" "Башнефть-Новойл" | C98: 2 | D98: 94 | E98: Маркировка ZB5 QR 1050020:0141 (141-150) | F98: ШТ | G98: 10 | H98: 39.31 | I98: 393.1 | J98: 450045, г. Уфа, ПАО АНК "Башнефть" "Башнефть-Новойл"
A99: Маркировка | B99: ПАО АНК "Башнефть" "Башнефть-Новойл" | C99: 2 | D99: 95 | E99: Маркировка ZB5 QR 1050020:0151 (151-160) | F99: ШТ | G99: 20 | H99: 39.31 | I99: 786.2 | J99: 450045, г. Уфа, ПАО АНК "Башнефть" "Башнефть-Новойл"
A100: Маркировка | B100: ПАО АНК "Башнефть" "Башнефть-Новойл" | C100: 2 | D100: 96 | E100: Маркировка ZB5 QR 1050020:0151 (151-160) | F100: ШТ | G100: 3 | H100: 39.31 | I100: 117.93 | J100: 450045, г. Уфа, ПАО АНК "Башнефть" "Башнефть-Новойл"
A101: Маркировка | B101: ПАО АНК "Башнефть" "Башнефть-Новойл" | C101: 2 | D101: 97 | E101: Маркировка ZB5 QR 1050020:0151 (151-160) | F101: ШТ | G101: 3 | H101: 39.31 | I101: 117.93 | J101: 450045, г. Уфа, ПАО АНК "Башнефть" "Башнефть-Новойл"
A102: Маркировка | B102: ПАО АНК "Башнефть" "Башнефть-Новойл" | C102: 2 | D102: 98 | E102: Маркировка ZB5 QR 1050020:0151 (151-160) | F102: ШТ | G102: 10 | H102: 39.31 | I102: 393.1 | J102: 450045, г. Уфа, ПАО АНК "Башнефть" "Башнефть-Новойл"
A103: Маркировка | B103: ПАО АНК "Башнефть" "Башнефть-Новойл" | C103: 2 | D103: 99 | E103: Маркировка ZB5 QR 1050020:0161 (161-170) | F103: ШТ | G103: 1 | H103: 39.31 | I103: 39.31 | J103: 450045, г. Уфа, ПАО АНК "Башнефть" "Башнефть-Новойл"
A104: Маркировка | B104: ПАО АНК "Башнефть" "Башнефть-Новойл" | C104: 2 | D104: 100 | E104: Маркировка ZB5 QR 1050020:0161 (161-170) | F104: ШТ | G104: 20 | H104: 39.31 | I104: 786.2 | J104: 450045, г. Уфа, ПАО АНК "Башнефть" "Башнефть-Новойл"
A105: Маркировка | B105: ПАО АНК "Башнефть" "Башнефть-Новойл" | C105: 2 | D105: 101 | E105: Маркировка ZB5 QR 1050020:0161 (161-170) | F105: ШТ | G105: 6 | H105: 39.31 | I105: 235.86 | J105: 450045, г. Уфа, ПАО АНК "Башнефть" "Башнефть-Новойл"
A106: Маркировка | B106: ПАО АНК "Башнефть" "Башнефть-Новойл" | C106: 2 | D106: 102 | E106: Маркировка ZB5 QR 1050020:0161 (161-170) | F106: ШТ | G106: 9 | H106: 39.31 | I106: 353.79 | J106: 450045, г. Уфа, ПАО АНК "Башнефть" "Башнефть-Новойл"
A107: Маркировка | B107: ПАО АНК "Башнефть" "Башнефть-Новойл" | C107: 2 | D107: 103 | E107: Маркировка ZB5 QR 1050020:0171 (171-180) | F107: ШТ | G107: 1 | H107: 39.31 | I107: 39.31 | J107: 450045, г. Уфа, ПАО АНК "Башнефть" "Башнефть-Новойл"
A108: Маркировка | B108: ПАО АНК "Башнефть" "Башнефть-Новойл" | C108: 2 | D108: 104 | E108: Маркировка ZB5 QR 1050020:0171 (171-180) | F108: ШТ | G108: 20 | H108: 39.31 | I108: 786.2 | J108: 450045, г. Уфа, ПАО АНК "Башнефть" "Башнефть-Новойл"
A109: Маркировка | B109: ПАО АНК "Башнефть" "Башнефть-Новойл" | C109: 2 | D109: 105 | E109: Маркировка ZB5 QR 1050020:0171 (171-180) | F109: ШТ | G109: 6 | H109: 39.31 | I109: 235.86 | J109: 450045, г. Уфа, ПАО АНК "Башнефть" "Башнефть-Новойл"
A110: Маркировка | B110: ПАО АНК "Башнефть" "Башнефть-Новойл" | C110: 2 | D110: 106 | E110: Маркировка ZB5 QR 1050020:0171 (171-180) | F110: ШТ | G110: 9 | H110: 39.31 | I110: 353.79 | J110: 450045, г. Уфа, ПАО АНК "Башнефть" "Башнефть-Новойл"
A111: Маркировка | B111: ПАО АНК "Башнефть" "Башнефть-Новойл" | C111: 2 | D111: 107 | E111: Маркировка ZB5 QR 1050020:0181 (181-190) | F111: ШТ | G111: 1 | H111: 39.31 | I111: 39.31 | J111: 450045, г. Уфа, ПАО АНК "Башнефть" "Башнефть-Новойл"
A112: Маркировка | B112: ПАО АНК "Башнефть" "Башнефть-Новойл" | C112: 2 | D112: 108 | E112: Маркировка ZB5 QR 1050020:0181 (181-190) | F112: ШТ | G112: 20 | H112: 39.31 | I112: 786.2 | J112: 450045, г. Уфа, ПАО АНК "Башнефть" "Башнефть-Новойл"
A113: Маркировка | B113: ПАО АНК "Башнефть" "Башнефть-Новойл" | C113: 2 | D113: 109 | E113: Маркировка ZB5 QR 1050020:0181 (181-190) | F113: ШТ | G113: 1 | H113: 39.31 | I113: 39.31 | J113: 450045, г. Уфа, ПАО АНК "Башнефть" "Башнефть-Новойл"
A114: Маркировка | B114: ПАО АНК "Башнефть" "Башнефть-Новойл" | C114: 2 | D114: 110 | E114: Маркировка ZB5 QR 1050020:0181 (181-190) | F114: ШТ | G114: 5 | H114: 39.31 | I114: 196.55 | J114: 450045, г. Уфа, ПАО АНК "Башнефть" "Башнефть-Новойл"
A115: Маркировка | B115: ПАО АНК "Башнефть" "Башнефть-Новойл" | C115: 2 | D115: 111 | E115: Маркировка ZB5 QR 1050020:0181 (181-190) | F115: ШТ | G115: 9 | H115: 39.31 | I115: 353.79 | J115: 450045, г. Уфа, ПАО АНК "Башнефть" "Башнефть-Новойл"
A116: Маркировка | B116: ПАО АНК "Башнефть" "Башнефть-Новойл" | C116: 2 | D116: 112 | E116: Маркировка ZB5 QR 1050020:0191 (191-200) | F116: ШТ | G116: 1 | H116: 39.31 | I116: 39.31 | J116: 450045, г. Уфа, ПАО АНК "Башнефть" "Башнефть-Новойл"
A117: Маркировка | B117: ПАО АНК "Башнефть" "Башнефть-Новойл" | C117: 2 | D117: 113 | E117: Маркировка ZB5 QR 1050020:0191 (191-200) | F117: ШТ | G117: 20 | H117: 39.31 | I117: 786.2 | J117: 450045, г. Уфа, ПАО АНК "Башнефть" "Башнефть-Новойл"
A118: Маркировка | B118: ПАО АНК "Башнефть" "Башнефть-Новойл" | C118: 2 | D118: 114 | E118: Маркировка ZB5 QR 1050020:0191 (191-200) | F118: ШТ | G118: 6 | H118: 39.31 | I118: 235.86 | J118: 450045, г. Уфа, ПАО АНК "Башнефть" "Башнефть-Новойл"
A119: Маркировка | B119: ПАО АНК "Башнефть" "Башнефть-Новойл" | C119: 2 | D119: 115 | E119: Маркировка ZB5 QR 1050020:0191 (191-200) | F119: ШТ | G119: 9 | H119: 39.31 | I119: 353.79 | J119: 450045, г. Уфа, ПАО АНК "Башнефть" "Башнефть-Новойл"
A120: Маркировка | B120: ПАО АНК "Башнефть" "Башнефть-Новойл" | C120: 2 | D120: 116 | E120: Маркировка ZB5 QR 1050020:0201 (201-210) | F120: ШТ | G120: 1 | H120: 39.31 | I120: 39.31 | J120: 450045, г. Уфа, ПАО АНК "Башнефть" "Башнефть-Новойл"
A121: Маркировка | B121: ПАО АНК "Башнефть" "Башнефть-Новойл" | C121: 2 | D121: 117 | E121: Маркировка ZB5 QR 1050020:0201 (201-210) | F121: ШТ | G121: 20 | H121: 39.31 | I121: 786.2 | J121: 450045, г. Уфа, ПАО АНК "Башнефть" "Башнефть-Новойл"
A122: Маркировка | B122: ПАО АНК "Башнефть" "Башнефть-Новойл" | C122: 2 | D122: 118 | E122: Маркировка ZB5 QR 1050020:0201 (201-210) | F122: ШТ | G122: 5 | H122: 39.31 | I122: 196.55 | J122: 450045, г. Уфа, ПАО АНК "Башнефть" "Башнефть-Новойл"
A123: Маркировка | B123: ПАО АНК "Башнефть" "Башнефть-Новойл" | C123: 2 | D123: 119 | E123: Маркировка ZB5 QR 1050020:0201 (201-210) | F123: ШТ | G123: 1 | H123: 39.31 | I123: 39.31 | J123: 450045, г. Уфа, ПАО АНК "Башнефть" "Башнефть-Новойл"
A124: Маркировка | B124: ПАО АНК "Башнефть" "Башнефть-Новойл" | C124: 2 | D124: 120 | E124: Маркировка ZB5 QR 1050020:0201 (201-210) | F124: ШТ | G124: 9 | H124: 39.31 | I124: 353.79 | J124: 450045, г. Уфа, ПАО АНК "Башнефть" "Башнефть-Новойл"
A125: Маркировка | B125: ПАО АНК "Башнефть" "Башнефть-Новойл" | C125: 2 | D125: 121 | E125: Маркировка ZB5 QR 1050020:0211 (211-220) | F125: ШТ | G125: 20 | H125: 39.31 | I125: 786.2 | J125: 450045, г. Уфа, ПАО АНК "Башнефть" "Башнефть-Новойл"
A126: Маркировка | B126: ПАО АНК "Башнефть" "Башнефть-Новойл" | C126: 2 | D126: 122 | E126: Маркировка ZB5 QR 1050020:0211 (211-220) | F126: ШТ | G126: 6 | H126: 39.31 | I126: 235.86 | J126: 450045, г. Уфа, ПАО АНК "Башнефть" "Башнефть-Новойл"
A127: Маркировка | B127: ПАО АНК "Башнефть" "Башнефть-Новойл" | C127: 2 | D127: 123 | E127: Маркировка ZB5 QR 1050020:0211 (211-220) | F127: ШТ | G127: 10 | H127: 39.31 | I127: 393.1 | J127: 450045, г. Уфа, ПАО АНК "Башнефть" "Башнефть-Новойл"
A128: Маркировка | B128: ПАО АНК "Башнефть" "Башнефть-Новойл" | C128: 2 | D128: 124 | E128: Маркировка ZB5 QR 1050020:0221 (221-230) | F128: ШТ | G128: 20 | H128: 39.31 | I128: 786.2 | J128: 450045, г. Уфа, ПАО АНК "Башнефть" "Башнефть-Новойл"
A129: Маркировка | B129: ПАО АНК "Башнефть" "Башнефть-Новойл" | C129: 2 | D129: 125 | E129: Маркировка ZB5 QR 1050020:0221 (221-230) | F129: ШТ | G129: 5 | H129: 39.31 | I129: 196.55 | J129: 450045, г. Уфа, ПАО АНК "Башнефть" "Башнефть-Новойл"
A130: Маркировка | B130: ПАО АНК "Башнефть" "Башнефть-Новойл" | C130: 2 | D130: 126 | E130: Маркировка ZB5 QR 1050020:0221 (221-230) | F130: ШТ | G130: 1 | H130: 39.31 | I130: 39.31 | J130: 450045, г. Уфа, ПАО АНК "Башнефть" "Башнефть-Новойл"
A131: Маркировка | B131: ПАО АНК "Башнефть" "Башнефть-Новойл" | C131: 2 | D131: 127 | E131: Маркировка ZB5 QR 1050020:0221 (221-230) | F131: ШТ | G131: 10 | H131: 39.31 | I131: 393.1 | J131: 450045, г. Уфа, ПАО АНК "Башнефть" "Башнефть-Новойл"
A132: Маркировка | B132: ПАО АНК "Башнефть" "Башнефть-Новойл" | C132: 2 | D132: 128 | E132: Маркировка ZB5 QR 1050020:0231 (231-240) | F132: ШТ | G132: 20 | H132: 39.31 | I132: 786.2 | J132: 450045, г. Уфа, ПАО АНК "Башнефть" "Башнефть-Новойл"
A133: Маркировка | B133: ПАО АНК "Башнефть" "Башнефть-Новойл" | C133: 2 | D133: 129 | E133: Маркировка ZB5 QR 1050020:0231 (231-240) | F133: ШТ | G133: 1 | H133: 39.31 | I133: =G133*H133 -> 39.31 | J133: 450045, г. Уфа, ПАО АНК "Башнефть" "Башнефть-Новойл"
A134: Маркировка | B134: ПАО АНК "Башнефть" "Башнефть-Новойл" | C134: 2 | D134: 130 | E134: Маркировка ZB5 QR 1050020:0231 (231-240) | F134: ШТ | G134: 5 | H134: 39.31 | I134: 196.55 | J134: 450045, г. Уфа, ПАО АНК "Башнефть" "Башнефть-Новойл"
A135: Маркировка | B135: ПАО АНК "Башнефть" "Башнефть-Новойл" | C135: 2 | D135: 131 | E135: Маркировка ZB5 QR 1050020:0231 (231-240) | F135: ШТ | G135: 10 | H135: 39.31 | I135: 393.1 | J135: 450045, г. Уфа, ПАО АНК "Башнефть" "Башнефть-Новойл"
A136: Маркировка | B136: ПАО АНК "Башнефть" "Башнефть-Новойл" | C136: 2 | D136: 132 | E136: Маркировка ZB5 QR 1050020:0241 (241-250) | F136: ШТ | G136: 11 | H136: 39.31 | I136: 432.41 | J136: 450045, г. Уфа, ПАО АНК "Башнефть" "Башнефть-Новойл"
A137: Маркировка | B137: ПАО АНК "Башнефть" "Башнефть-Новойл" | C137: 2 | D137: 133 | E137: Маркировка ZB5 QR 1050020:0241 (241-250) | F137: ШТ | G137: 9 | H137: 39.31 | I137: 353.79 | J137: 450045, г. Уфа, ПАО АНК "Башнефть" "Башнефть-Новойл"
A138: Маркировка | B138: ПАО АНК "Башнефть" "Башнефть-Новойл" | C138: 2 | D138: 134 | E138: Маркировка ZB5 QR 1050020:0241 (241-250) | F138: ШТ | G138: 6 | H138: 39.31 | I138: 235.86 | J138: 450045, г. Уфа, ПАО АНК "Башнефть" "Башнефть-Новойл"
A139: Маркировка | B139: ПАО АНК "Башнефть" "Башнефть-Новойл" | C139: 2 | D139: 135 | E139: Маркировка ZB5 QR 1050020:0241 (241-250) | F139: ШТ | G139: 10 | H139: 39.31 | I139: 393.1 | J139: 450045, г. Уфа, ПАО АНК "Башнефть" "Башнефть-Новойл"
A140: Маркировка | B140: ПАО АНК "Башнефть" "Башнефть-Новойл" | C140: 2 | D140: 136 | E140: Маркировка ZB5 QR 1050020:0251 (251-260) | F140: ШТ | G140: 10 | H140: 39.31 | I140: 393.1 | J140: 450045, г. Уфа, ПАО АНК "Башнефть" "Башнефть-Новойл"
A141: Маркировка | B141: ПАО АНК "Башнефть" "Башнефть-Новойл" | C141: 2 | D141: 137 | E141: Маркировка ZB5 QR 1050020:0251 (251-260) | F141: ШТ | G141: 10 | H141: 39.31 | I141: 393.1 | J141: 450045, г. Уфа, ПАО АНК "Башнефть" "Башнефть-Новойл"
A142: Маркировка | B142: ПАО АНК "Башнефть" "Башнефть-Новойл" | C142: 2 | D142: 138 | E142: Маркировка ZB5 QR 1050020:0251 (251-260) | F142: ШТ | G142: 6 | H142: 39.31 | I142: 235.86 | J142: 450045, г. Уфа, ПАО АНК "Башнефть" "Башнефть-Новойл"
A143: Маркировка | B143: ПАО АНК "Башнефть" "Башнефть-Новойл" | C143: 2 | D143: 139 | E143: Маркировка ZB5 QR 1050020:0251 (251-260) | F143: ШТ | G143: 10 | H143: 39.31 | I143: 393.1 | J143: 450045, г. Уфа, ПАО АНК "Башнефть" "Башнефть-Новойл"
A144: Маркировка | B144: ПАО АНК "Башнефть" "Башнефть-Новойл" | C144: 2 | D144: 140 | E144: Маркировка ZB5 QR 1050020:0261 (261-270) | F144: ШТ | G144: 16 | H144: 39.31 | I144: 628.96 | J144: 450045, г. Уфа, ПАО АНК "Башнефть" "Башнефть-Новойл"
A145: Маркировка | B145: ПАО АНК "Башнефть" "Башнефть-Новойл" | C145: 2 | D145: 141 | E145: Маркировка ZB5 QR 1050020:0261 (261-270) | F145: ШТ | G145: 4 | H145: 39.31 | I145: 157.24 | J145: 450045, г. Уфа, ПАО АНК "Башнефть" "Башнефть-Новойл"
A146: Маркировка | B146: ПАО АНК "Башнефть" "Башнефть-Новойл" | C146: 2 | D146: 142 | E146: Маркировка ZB5 QR 1050020:0261 (261-270) | F146: ШТ | G146: 4 | H146: 39.31 | I146: 157.24 | J146: 450045, г. Уфа, ПАО АНК "Башнефть" "Башнефть-Новойл"
A147: Маркировка | B147: ПАО АНК "Башнефть" "Башнефть-Новойл" | C147: 2 | D147: 143 | E147: Маркировка ZB5 QR 1050020:0261 (261-270) | F147: ШТ | G147: 2 | H147: 39.31 | I147: 78.62 | J147: 450045, г. Уфа, ПАО АНК "Башнефть" "Башнефть-Новойл"
A148: Маркировка | B148: ПАО АНК "Башнефть" "Башнефть-Новойл" | C148: 2 | D148: 144 | E148: Маркировка ZB5 QR 1050020:0261 (261-270) | F148: ШТ | G148: 10 | H148: 39.31 | I148: 393.1 | J148: 450045, г. Уфа, ПАО АНК "Башнефть" "Башнефть-Новойл"
A149: Маркировка | B149: ПАО АНК "Башнефть" "Башнефть-Новойл" | C149: 2 | D149: 145 | E149: Маркировка ZB5 QR 1050020:0271 (271-280) | F149: ШТ | G149: 6 | H149: 39.31 | I149: 235.86 | J149: 450045, г. Уфа, ПАО АНК "Башнефть" "Башнефть-Новойл"
A150: Маркировка | B150: ПАО АНК "Башнефть" "Башнефть-Новойл" | C150: 2 | D150: 146 | E150: Маркировка ZB5 QR 1050020:0271 (271-280) | F150: ШТ | G150: 6 | H150: 39.31 | I150: 235.86 | J150: 450045, г. Уфа, ПАО АНК "Башнефть" "Башнефть-Новойл"
A151: Маркировка | B151: ПАО АНК "Башнефть" "Башнефть-Новойл" | C151: 2 | D151: 147 | E151: Маркировка ZB5 QR 1050020:0271 (271-280) | F151: ШТ | G151: 10 | H151: 39.31 | I151: 393.1 | J151: 450045, г. Уфа, ПАО АНК "Башнефть" "Башнефть-Новойл"
A152: Маркировка | B152: ПАО АНК "Башнефть" "Башнефть-Новойл" | C152: 2 | D152: 148 | E152: Маркировка ZB5 QR 1050020:0281 (281-290) | F152: ШТ | G152: 2 | H152: 39.31 | I152: 78.62 | J152: 450045, г. Уфа, ПАО АНК "Башнефть" "Башнефть-Новойл"
A153: Маркировка | B153: ПАО АНК "Башнефть" "Башнефть-Новойл" | C153: 2 | D153: 149 | E153: Маркировка ZB5 QR 1050020:0281 (281-290) | F153: ШТ | G153: 2 | H153: 39.31 | I153: 78.62 | J153: 450045, г. Уфа, ПАО АНК "Башнефть" "Башнефть-Новойл"
A154: Маркировка | B154: ПАО АНК "Башнефть" "Башнефть-Новойл" | C154: 2 | D154: 150 | E154: Маркировка ZB5 QR 1050020:0281 (281-290) | F154: ШТ | G154: 4 | H154: 39.31 | I154: 157.24 | J154: 450045, г. Уфа, ПАО АНК "Башнефть" "Башнефть-Новойл"
A155: Маркировка | B155: ПАО АНК "Башнефть" "Башнефть-Новойл" | C155: 2 | D155: 151 | E155: Маркировка ZB5 QR 1050020:0291 (291-300) | F155: ШТ | G155: 4 | H155: 39.31 | I155: 157.24 | J155: 450045, г. Уфа, ПАО АНК "Башнефть" "Башнефть-Новойл"
A156: Маркировка | B156: ПАО АНК "Башнефть" "Башнефть-Новойл" | C156: 2 | D156: 152 | E156: Маркировка ZB5 QR 1050020:0291 (291-300) | F156: ШТ | G156: 4 | H156: 39.31 | I156: 157.24 | J156: 450045, г. Уфа, ПАО АНК "Башнефть" "Башнефть-Новойл"
A157: Маркировка | B157: ПАО АНК "Башнефть" "Башнефть-Новойл" | C157: 2 | D157: 153 | E157: Маркировка ZB5 QR 1050020:0291 (291-300) | F157: ШТ | G157: 2 | H157: 39.31 | I157: 78.62 | J157: 450045, г. Уфа, ПАО АНК "Башнефть" "Башнефть-Новойл"
A158: Маркировка | B158: ПАО АНК "Башнефть" "Башнефть-Новойл" | C158: 2 | D158: 154 | E158: Маркировка ZB6 LGS 1051016:0001 (1-10) | F158: ШТ | G158: 1 | H158: 39.31 | I158: 39.31 | J158: 450045, г. Уфа, ПАО АНК "Башнефть" "Башнефть-Новойл"
A159: Маркировка | B159: ПАО АНК "Башнефть" "Башнефть-Новойл" | C159: 2 | D159: 155 | E159: Маркировка ZB6/WH-100:UNBEDRUCKT 5060935 | F159: ШТ | G159: 99 | H159: 39.31 | I159: 3891.69 | J159: 450045, г. Уфа, ПАО АНК "Башнефть" "Башнефть-Новойл"
A160: Маркировка | B160: ПАО АНК "Башнефть" "Башнефть-Новойл" | C160: 2 | D160: 156 | E160: Маркировка ZB8 QR 1052028:0011 (11-20) | F160: ШТ | G160: 1 | H160: 39.31 | I160: 39.31 | J160: 450045, г. Уфа, ПАО АНК "Башнефть" "Башнефть-Новойл"
A161: Маркировка | B161: ПАО АНК "Башнефть" "Башнефть-Новойл" | C161: 2 | D161: 157 | E161: Маркировка ZB8 QR 1052028:0011 (11-20) | F161: ШТ | G161: 1 | H161: 39.31 | I161: 39.31 | J161: 450045, г. Уфа, ПАО АНК "Башнефть" "Башнефть-Новойл"
A162: Маркировка | B162: ПАО АНК "Башнефть" "Башнефть-Новойл" | C162: 2 | D162: 158 | E162: Маркировка ZB8 QR 1052028:0011 (11-20) | F162: ШТ | G162: 10 | H162: 39.31 | I162: 393.1 | J162: 450045, г. Уфа, ПАО АНК "Башнефть" "Башнефть-Новойл"
A163: Маркировка | B163: ПАО АНК "Башнефть" "Башнефть-Новойл" | C163: 2 | D163: 159 | E163: Маркировка ZB8 QR 1052028:0011 (11-20) | F163: ШТ | G163: 2 | H163: 39.31 | I163: 78.62 | J163: 450045, г. Уфа, ПАО АНК "Башнефть" "Башнефть-Новойл"
A164: Маркировка | B164: ПАО АНК "Башнефть" "Башнефть-Новойл" | C164: 2 | D164: 160 | E164: Маркировка ZB8 QR 1052028:0021 (21-30) | F164: ШТ | G164: 1 | H164: 39.31 | I164: 39.31 | J164: 450045, г. Уфа, ПАО АНК "Башнефть" "Башнефть-Новойл"
A165: Маркировка | B165: ПАО АНК "Башнефть" "Башнефть-Новойл" | C165: 2 | D165: 161 | E165: Маркировка ZB8 QR 1052028:0021 (21-30) | F165: ШТ | G165: 1 | H165: 39.31 | I165: 39.31 | J165: 450045, г. Уфа, ПАО АНК "Башнефть" "Башнефть-Новойл"
A166: Маркировка | B166: ПАО АНК "Башнефть" "Башнефть-Новойл" | C166: 2 | D166: 162 | E166: Маркировка ZB8 QR 1052028:0021 (21-30) | F166: ШТ | G166: 10 | H166: 39.31 | I166: 393.1 | J166: 450045, г. Уфа, ПАО АНК "Башнефть" "Башнефть-Новойл"
A167: Маркировка | B167: ПАО АНК "Башнефть" "Башнефть-Новойл" | C167: 2 | D167: 163 | E167: Маркировка ZB8 QR 1052028:0021 (21-30) | F167: ШТ | G167: 2 | H167: 39.31 | I167: 78.62 | J167: 450045, г. Уфа, ПАО АНК "Башнефть" "Башнефть-Новойл"
A168: Маркировка | B168: ПАО АНК "Башнефть" "Башнефть-Новойл" | C168: 2 | D168: 164 | E168: Маркировка ZB8 QR 1052028:0031 (31-40) | F168: ШТ | G168: 2 | H168: 39.31 | I168: 78.62 | J168: 450045, г. Уфа, ПАО АНК "Башнефть" "Башнефть-Новойл"
A169: Маркировка | B169: ПАО АНК "Башнефть" "Башнефть-Новойл" | C169: 2 | D169: 165 | E169: Маркировка ZB8 QR 1052028:0031 (31-40) | F169: ШТ | G169: 10 | H169: 39.31 | I169: 393.1 | J169: 450045, г. Уфа, ПАО АНК "Башнефть" "Башнефть-Новойл"
A170: Маркировка | B170: ПАО АНК "Башнефть" "Башнефть-Новойл" | C170: 2 | D170: 166 | E170: Маркировка ZB8 QR 1052028:0031 (31-40) | F170: ШТ | G170: 2 | H170: 39.31 | I170: 78.62 | J170: 450045, г. Уфа, ПАО АНК "Башнефть" "Башнефть-Новойл"
A171: Маркировка | B171: ПАО АНК "Башнефть" "Башнефть-Новойл" | C171: 2 | D171: 167 | E171: Маркировка ZB8 QR 1052028:0041 (41-50) | F171: ШТ | G171: 2 | H171: 39.31 | I171: 78.62 | J171: 450045, г. Уфа, ПАО АНК "Башнефть" "Башнефть-Новойл"
A172: Маркировка | B172: ПАО АНК "Башнефть" "Башнефть-Новойл" | C172: 2 | D172: 168 | E172: Маркировка ZB8 QR 1052028:0041 (41-50) | F172: ШТ | G172: 10 | H172: 39.31 | I172: 393.1 | J172: 450045, г. Уфа, ПАО АНК "Башнефть" "Башнефть-Новойл"
A173: Маркировка | B173: ПАО АНК "Башнефть" "Башнефть-Новойл" | C173: 2 | D173: 169 | E173: Маркировка ZB8 QR 1052028:0041 (41-50) | F173: ШТ | G173: 2 | H173: 39.31 | I173: 78.62 | J173: 450045, г. Уфа, ПАО АНК "Башнефть" "Башнефть-Новойл"
A174: Маркировка | B174: ПАО АНК "Башнефть" "Башнефть-Новойл" | C174: 2 | D174: 170 | E174: Маркировка ZB8 QR 1052028:0051 (51-60) | F174: ШТ | G174: 2 | H174: 39.31 | I174: 78.62 | J174: 450045, г. Уфа, ПАО АНК "Башнефть" "Башнефть-Новойл"
A175: Маркировка | B175: ПАО АНК "Башнефть" "Башнефть-Новойл" | C175: 2 | D175: 171 | E175: Маркировка ZB8 QR 1052028:0051 (51-60) | F175: ШТ | G175: 10 | H175: 39.31 | I175: 393.1 | J175: 450045, г. Уфа, ПАО АНК "Башнефть" "Башнефть-Новойл"
A176: Маркировка | B176: ПАО АНК "Башнефть" "Башнефть-Новойл" | C176: 2 | D176: 172 | E176: Маркировка ZB8 QR 1052028:0061 (61-70) | F176: ШТ | G176: 2 | H176: 39.31 | I176: 78.62 | J176: 450045, г. Уфа, ПАО АНК "Башнефть" "Башнефть-Новойл"
A177: Маркировка | B177: ПАО АНК "Башнефть" "Башнефть-Новойл" | C177: 2 | D177: 173 | E177: Маркировка ZB8 QR 1052028:0061 (61-70) | F177: ШТ | G177: 10 | H177: 39.31 | I177: 393.1 | J177: 450045, г. Уфа, ПАО АНК "Башнефть" "Башнефть-Новойл"
A178: Маркировка | B178: ПАО АНК "Башнефть" "Башнефть-Новойл" | C178: 2 | D178: 174 | E178: Маркировка ZB8 QR 1052028:0071 (71-80) | F178: ШТ | G178: 2 | H178: 39.31 | I178: 78.62 | J178: 450045, г. Уфа, ПАО АНК "Башнефть" "Башнефть-Новойл"
A179: Маркировка | B179: ПАО АНК "Башнефть" "Башнефть-Новойл" | C179: 2 | D179: 175 | E179: Маркировка ZB8 QR 1052028:0071 (71-80) | F179: ШТ | G179: 10 | H179: 39.31 | I179: 393.1 | J179: 450045, г. Уфа, ПАО АНК "Башнефть" "Башнефть-Новойл"
A180: Маркировка | B180: ПАО АНК "Башнефть" "Башнефть-Новойл" | C180: 2 | D180: 176 | E180: Маркировка ZB8 QR 1052028:0081 (81-90) | F180: ШТ | G180: 2 | H180: 39.31 | I180: 78.62 | J180: 450045, г. Уфа, ПАО АНК "Башнефть" "Башнефть-Новойл"
A181: Маркировка | B181: ПАО АНК "Башнефть" "Башнефть-Новойл" | C181: 2 | D181: 177 | E181: Маркировка ZB8 QR 1052028:0081 (81-90) | F181: ШТ | G181: 10 | H181: 39.31 | I181: 393.1 | J181: 450045, г. Уфа, ПАО АНК "Башнефть" "Башнефть-Новойл"
A182: Маркировка | B182: ПАО АНК "Башнефть" "Башнефть-Новойл" | C182: 2 | D182: 178 | E182: Маркировка ZB8 QR 1052028:0091 (91-100) | F182: ШТ | G182: 2 | H182: 39.31 | I182: 78.62 | J182: 450045, г. Уфа, ПАО АНК "Башнефть" "Башнефть-Новойл"
A183: Маркировка | B183: ПАО АНК "Башнефть" "Башнефть-Новойл" | C183: 2 | D183: 179 | E183: Маркировка ZB8 QR 1052028:0091 (91-100) | F183: ШТ | G183: 10 | H183: 39.31 | I183: 393.1 | J183: 450045, г. Уфа, ПАО АНК "Башнефть" "Башнефть-Новойл"
A184: Маркировка | B184: ПАО АНК "Башнефть" "Башнефть-Новойл" | C184: 2 | D184: 180 | E184: Маркировка ZB8 QR 1052028:0101 (101-110) | F184: ШТ | G184: 10 | H184: 39.31 | I184: 393.1 | J184: 450045, г. Уфа, ПАО АНК "Башнефть" "Башнефть-Новойл"
A185: Маркировка | B185: ПАО АНК "Башнефть" "Башнефть-Новойл" | C185: 2 | D185: 181 | E185: Маркировка ZB8 QR 1052028:0111 (111-120) | F185: ШТ | G185: 10 | H185: 39.31 | I185: 393.1 | J185: 450045, г. Уфа, ПАО АНК "Башнефть" "Башнефть-Новойл"
A186: Маркировка | B186: ПАО АНК "Башнефть" "Башнефть-Новойл" | C186: 2 | D186: 182 | E186: Маркировка ZB8 QR 1052028:0121 (121-130) | F186: ШТ | G186: 3 | H186: 39.31 | I186: 117.93 | J186: 450045, г. Уфа, ПАО АНК "Башнефть" "Башнефть-Новойл"
A187: Маркировка | B187: ПАО АНК "Башнефть" "Башнефть-Новойл" | C187: 2 | D187: 183 | E187: Маркировка ZB8 QR 1052028:0121 (121-130) | F187: ШТ | G187: 7 | H187: 39.31 | I187: 275.17 | J187: 450045, г. Уфа, ПАО АНК "Башнефть" "Башнефть-Новойл"
A188: Маркировка | B188: ПАО АНК "Башнефть" "Башнефть-Новойл" | C188: 2 | D188: 184 | E188: Маркировка ZB8 QR 1052028:0121 (121-130) | F188: ШТ | G188: 1 | H188: 39.31 | I188: 39.31 | J188: 450045, г. Уфа, ПАО АНК "Башнефть" "Башнефть-Новойл"
A189: Маркировка | B189: ПАО АНК "Башнефть" "Башнефть-Новойл" | C189: 2 | D189: 185 | E189: Маркировка ZB8 QR 1052028:0131 (131-140) | F189: ШТ | G189: 4 | H189: 39.31 | I189: 157.24 | J189: 450045, г. Уфа, ПАО АНК "Башнефть" "Башнефть-Новойл"
A190: Маркировка | B190: ПАО АНК "Башнефть" "Башнефть-Новойл" | C190: 2 | D190: 186 | E190: Маркировка ZB8 QR 1052028:0141 (141-150) | F190: ШТ | G190: 4 | H190: 39.31 | I190: 157.24 | J190: 450045, г. Уфа, ПАО АНК "Башнефть" "Башнефть-Новойл"
A191: Маркировка | B191: ПАО АНК "Башнефть" "Башнефть-Новойл" | C191: 2 | D191: 187 | E191: Маркировка ZB8 QR 1052028:0151 (151-160) | F191: ШТ | G191: 4 | H191: 39.31 | I191: 157.24 | J191: 450045, г. Уфа, ПАО АНК "Башнефть" "Башнефть-Новойл"
A192: Маркировка | B192: ПАО АНК "Башнефть" "Башнефть-Новойл" | C192: 2 | D192: 188 | E192: Маркировка ZB8 QR 1052028:0161 (161-170) | F192: ШТ | G192: 4 | H192: 39.31 | I192: 157.24 | J192: 450045, г. Уфа, ПАО АНК "Башнефть" "Башнефть-Новойл"
A193: Маркировка | B193: ПАО АНК "Башнефть" "Башнефть-Новойл" | C193: 2 | D193: 189 | E193: Маркировка ZB8 QR 1052028:0171 (171-180) | F193: ШТ | G193: 4 | H193: 39.31 | I193: 157.24 | J193: 450045, г. Уфа, ПАО АНК "Башнефть" "Башнефть-Новойл"
A194: Маркировка | B194: ПАО АНК "Башнефть" "Башнефть-Новойл" | C194: 2 | D194: 190 | E194: Маркировка ZB8 QR 1052028:0191 (191-200) | F194: ШТ | G194: 4 | H194: 39.31 | I194: 157.24 | J194: 450045, г. Уфа, ПАО АНК "Башнефть" "Башнефть-Новойл"
A195: Маркировка | B195: ПАО АНК "Башнефть" "Башнефть-Новойл" | C195: 2 | D195: 191 | E195: Маркировка ZB8 QR 1052028:0201 (201-210) | F195: ШТ | G195: 1 | H195: 39.31 | I195: 39.31 | J195: 450045, г. Уфа, ПАО АНК "Башнефть" "Башнефть-Новойл"
A196: Маркировка | B196: ПАО АНК "Башнефть" "Башнефть-Новойл" | C196: 2 | D196: 192 | E196: Маркировка ZB8 QR 1052028:0201 (201-210) | F196: ШТ | G196: 10 | H196: 39.31 | I196: 393.1 | J196: 450045, г. Уфа, ПАО АНК "Башнефть" "Башнефть-Новойл"
A197: Маркировка | B197: ПАО АНК "Башнефть" "Башнефть-Новойл" | C197: 2 | D197: 193 | E197: Маркировка ZB8 QR 1052028:0201 (201-210) | F197: ШТ | G197: 10 | H197: 39.31 | I197: =G197*H197 -> 393.1 | J197: 450045, г. Уфа, ПАО АНК "Башнефть" "Башнефть-Новойл"
A198: Маркировка | B198: ПАО АНК "Башнефть" "Башнефть-Новойл" | C198: 2 | D198: 194 | E198: Маркировка ZB8 QR 1052028:0201 (201-210) | F198: ШТ | G198: 4 | H198: 39.31 | I198: 157.24 | J198: 450045, г. Уфа, ПАО АНК "Башнефть" "Башнефть-Новойл"
A199: Маркировка | B199: ПАО АНК "Башнефть" "Башнефть-Новойл" | C199: 2 | D199: 195 | E199: Маркировка ZB8 QR 1052028:0211 (211-220) | F199: ШТ | G199: 10 | H199: 39.31 | I199: 393.1 | J199: 450045, г. Уфа, ПАО АНК "Башнефть" "Башнефть-Новойл"
A200: Маркировка | B200: ПАО АНК "Башнефть" "Башнефть-Новойл" | C200: 2 | D200: 196 | E200: Маркировка ZB8 QR 1052028:0211 (211-220) | F200: ШТ | G200: 10 | H200: 39.31 | I200: 393.1 | J200: 450045, г. Уфа, ПАО АНК "Башнефть" "Башнефть-Новойл"
A201: Маркировка | B201: ПАО АНК "Башнефть" "Башнефть-Новойл" | C201: 2 | D201: 197 | E201: Маркировка ZB8 QR 1052028:0221 (221-230) | F201: ШТ | G201: 10 | H201: 39.31 | I201: 393.1 | J201: 450045, г. Уфа, ПАО АНК "Башнефть" "Башнефть-Новойл"
... 798 more rows

Sheet Лист1
